bitfinex/quotes_BTCUSD_20250224
["timestamp","ask_amount","ask_price","bid_price","bid_amount"]
[1740436383803,0.00162632,93745.0,93744.0,0.31599169]
[1740436384012,0.00043147,93748.0,93744.0,0.10264569]
[1740436384477,0.00162723,93747.0,93744.0,0.10264569]
[1740436384698,0.00043147,93748.0,93744.0,0.10264569]
[1740436385138,0.00162723,93747.0,93744.0,0.10564569]
[1740436385596,0.00043147,93748.0,93744.0,0.10564569]
[1740436385817,0.00043147,93748.0,93744.0,0.10264569]
[1740436386049,0.00162723,93747.0,93744.0,0.10264569]
[1740436386490,0.00043147,93748.0,93744.0,0.10264569]
[1740436386925,0.00162723,93747.0,93744.0,0.10264569]
[1740436387138,0.00043147,93748.0,93744.0,0.10264569]
[1740436387558,0.00247603,93747.0,93744.0,0.10264569]
[1740436388027,0.0008488,93747.0,93744.0,0.10564569]
[1740436388278,0.0008488,93747.0,93744.0,0.10264569]
[1740436388501,0.0008488,93747.0,93744.0,0.10564569]
[1740436389383,0.0008488,93747.0,93744.0,0.10264569]
[1740436389655,0.0008488,93747.0,93744.0,0.10564569]
[1740436390991,0.0008488,93747.0,93744.0,0.10264569]
[1740436391231,0.05320336,93827.0,93744.0,0.10264569]
[1740436391441,0.159994,93753.0,93744.0,0.10664569]
[1740436392170,0.00162747,93752.0,93744.0,0.10264569]
[1740436392596,0.159993,93754.0,93744.0,0.10264569]
[1740436392813,0.00162699,93751.0,93744.0,0.10264569]
[1740436393027,0.16011936,93756.0,93744.0,0.10264569]
[1740436393250,0.00012936,93756.0,93749.0,0.08535746]
[1740436393495,0.00012936,93756.0,93754.0,0.159993]
[1740436393496,0.00162699,93755.0,93754.0,0.159993]
[1740436393700,0.00012936,93756.0,93755.0,0.159991]
[1740436393919,0.00012936,93756.0,93755.0,0.26412974]
[1740436394147,0.00012936,93756.0,93755.0,0.26263669]
[1740436395572,0.00012936,93756.0,93755.0,0.26963669]
[1740436398738,0.00012936,93756.0,93755.0,0.10964569]
[1740436399213,0.00097796,93756.0,93755.0,0.10964569]
[1740436399691,0.00097796,93756.0,93755.0,0.26963669]
[1740436399914,0.00097796,93756.0,93755.0,0.10964569]
[1740436400129,0.00097796,93756.0,93755.0,0.10564569]
[1740436400347,0.00097796,93756.0,93755.0,0.26563669]
[1740436400831,0.00197796,93756.0,93755.0,0.27263669]
[1740436401489,0.00197796,93756.0,93755.0,0.28262364]
[1740436401703,0.00197796,93756.0,93755.0,0.12263264]
[1740436401918,0.00197796,93756.0,93755.0,0.14397744]
[1740436402172,0.00197796,93756.0,93755.0,0.23082796]
[1740436402394,0.00197796,93756.0,93755.0,0.2293349]
[1740436403293,0.00197796,93756.0,93755.0,0.14397744]
[1740436404459,0.16196696,93756.0,93755.0,0.04533175]
[1740436404721,0.16196696,93756.0,93755.0,0.0353448]
[1740436404941,0.16196696,93756.0,93755.0,0.014]
[1740436404942,0.16360859,93756.0,93755.0,0.014]
[1740436405194,0.21120859,93756.0,93755.0,0.014]
[1740436405453,0.21020859,93756.0,93755.0,0.007]
[1740436405707,0.21020859,93756.0,93755.0,0.014]
[1740436405959,0.5907352,93756.0,93755.0,0.007]
[1740436406175,0.16001,93744.0,93724.0,0.08535746]
[1740436406657,0.16164881,93744.0,93724.0,0.08535746]
[1740436407285,0.16164881,93744.0,93734.0,0.02092328]
[1740436407848,0.16164881,93744.0,93743.0,0.0038172]
[1740436409081,0.16164881,93744.0,93743.0,0.0018172]
[1740436409550,0.16164881,93744.0,93743.0,0.0068172]
[1740436410020,0.16164881,93744.0,93743.0,0.0018172]
[1740436410488,0.16164881,93744.0,93743.0,0.0068172]
[1740436410715,0.16164881,93744.0,93743.0,0.0048172]
[1740436412292,0.160025,93735.0,93734.0,0.01574048]
[1740436412564,0.160037,93728.0,93724.0,0.08535746]
[1740436413053,0.213369,93734.0,93724.0,0.08535746]
[1740436413302,0.160032,93732.0,93724.0,0.08535746]
[1740436413566,0.160033,93731.0,93724.0,0.08535746]
[1740436413807,0.001,93735.0,93724.0,0.08535746]
[1740436414027,0.16166043,93731.0,93724.0,0.08535746]
[1740436414257,0.160033,93731.0,93724.0,0.08535746]
[1740436414508,0.17470925,93752.0,93727.0,0.0046976]
[1740436414730,0.00162743,93730.0,93727.0,0.0016976]
[1740436414937,0.00121241,93751.0,93727.0,0.0036976]
[1740436415159,0.160037,93728.0,93727.0,0.0096976]
[1740436415384,0.160037,93728.0,93727.0,0.0076976]
[1740436415597,0.00162743,93728.0,93727.0,0.0016976]
[1740436416031,0.160037,93728.0,93727.0,0.0066976]
[1740436416248,0.16166443,93728.0,93727.0,0.0066976]
[1740436416484,0.16166443,93728.0,93727.0,0.0016976]
[1740436416715,0.16166443,93728.0,93727.0,0.0106976]
[1740436416937,0.16266443,93728.0,93727.0,0.0106976]
[1740436417180,0.16266443,93728.0,93727.0,0.0156976]
[1740436417934,0.16266443,93728.0,93727.0,0.0066976]
[1740436418166,0.16166443,93728.0,93727.0,0.0016976]
[1740436418409,0.16366443,93728.0,93727.0,0.0016976]
[1740436419124,0.16166443,93728.0,93727.0,0.0016976]
[1740436419571,0.00162743,93728.0,93727.0,0.0016976]
[1740436420541,0.00362743,93728.0,93727.0,0.0016976]
[1740436420762,0.00162743,93728.0,93727.0,0.0016976]
[1740436421219,0.00121241,93728.0,93727.0,0.0016976]
[1740436421475,0.0028018,93728.0,93727.0,0.0046976]
[1740436421663,0.00121241,93728.0,93727.0,0.0046976]
[1740436421888,0.0028018,93728.0,93727.0,0.0016976]
[1740436422116,0.00121241,93728.0,93727.0,0.0016976]
[1740436422332,0.00158939,93728.0,93727.0,0.0056976]
[1740436422592,0.00121241,93729.0,93727.0,0.0056976]
[1740436422844,0.00158939,93728.0,93727.0,0.0056976]
[1740436424068,0.00158939,93728.0,93727.0,0.26438229]
[1740436424556,0.00121241,93752.0,93727.0,0.10734329]
[1740436424733,0.27788092,93753.0,93736.0,0.08535746]
[1740436424992,0.43787492,93753.0,93737.0,0.10264569]
[1740436425222,0.159997,93752.0,93737.0,0.10164569]
[1740436425442,0.27788092,93753.0,93737.0,0.10164569]
[1740436425662,0.43787692,93753.0,93737.0,0.10164569]
[1740436426110,0.160008,93746.0,93737.0,0.10164569]
[1740436426340,0.160009,93745.0,93737.0,0.10164569]
[1740436426565,0.00153461,93743.0,93737.0,0.10164569]
[1740436427063,0.16154661,93743.0,93737.0,0.10164569]
[1740436427297,0.00153461,93743.0,93737.0,0.10364569]
[1740436427520,0.01744669,93743.0,93737.0,0.10164569]
[1740436427710,0.00153461,93743.0,93737.0,0.10564569]
[1740436427925,0.00153461,93743.0,93737.0,0.10664569]
[1740436428175,0.00153461,93743.0,93737.0,0.10564569]
[1740436428424,0.00153461,93743.0,93737.0,0.10264569]
[1740436428649,0.00153461,93743.0,93737.0,0.10664569]
[1740436429838,0.16002,93738.0,93737.0,0.005]
[1740436430089,0.00153461,93743.0,93737.0,0.005]
[1740436430090,0.16002,93739.0,93737.0,0.005]
[1740436430321,0.16155489,93738.0,93737.0,0.005]
[1740436430748,0.16155489,93738.0,93737.0,0.001]
[1740436430965,0.16155489,93738.0,93737.0,0.007]
[1740436431197,0.16155489,93738.0,93737.0,0.006]
[1740436431198,0.1627673,93738.0,93737.0,0.006]
[1740436431446,0.16155489,93738.0,93737.0,0.006]
[1740436431679,0.16155489,93738.0,93737.0,0.009]
[1740436432161,0.2390673,93738.0,93737.0,0.009]
[1740436432391,0.23785489,93738.0,93737.0,0.009]
[1740436433142,0.23784995,93738.0,93737.0,0.009]
[1740436433629,0.25522321,93738.0,93737.0,0.009]
[1740436434994,0.25522321,93738.0,93737.0,0.0106974]
[1740436435229,0.23784995,93738.0,93737.0,0.0106974]
[1740436438586,0.23784995,93738.0,93737.0,0.0046974]
[1740436438794,0.16154995,93738.0,93737.0,0.0046974]
[1740436439014,0.16276236,93738.0,93737.0,0.0016974]
[1740436439529,0.16276236,93738.0,93737.0,0.0026974]
[1740436439973,0.16276236,93738.0,93737.0,0.0066974]
[1740436440408,0.16276236,93738.0,93737.0,0.0026974]
[1740436440623,0.16276236,93738.0,93737.0,0.0066974]
[1740436445232,0.39815597,93738.0,93737.0,0.0066974]
[1740436445467,0.49958925,93738.0,93737.0,0.0066974]
[1740436445950,0.49958925,93738.0,93737.0,0.00350918]
[1740436446177,0.160037,93728.0,93727.0,0.0016976]
[1740436446407,0.31124941,93728.0,93727.0,0.0016976]
[1740436446636,0.160063,93713.0,93712.0,0.0016972]
[1740436446883,0.54180202,93713.0,93712.0,0.0016972]
[1740436447106,0.38052661,93713.0,93707.0,6.7e-07]
[1740436447349,0.160071,93708.0,93707.0,6.7e-07]
[1740436447594,0.69181002,93708.0,93707.0,6.7e-07]
[1740436447817,0.69059761,93708.0,93707.0,6.7e-07]
[1740436448050,0.54211499,93708.0,93707.0,0.00043214]
[1740436448737,0.54879764,93708.0,93707.0,0.00043214]
[1740436448975,0.55079764,93708.0,93707.0,0.00043214]
[1740436450363,0.54411499,93708.0,93707.0,0.00043214]
[1740436450590,0.4414693,93708.0,93707.0,0.00043214]
[1740436451257,0.16358838,93708.0,93707.0,0.00043214]
[1740436451505,0.00151738,93708.0,93707.0,0.00043214]
[1740436451720,0.00351738,93708.0,93707.0,0.00043214]
[1740436451969,0.27788092,93719.0,93707.0,0.00043214]
[1740436452159,0.27788092,93719.0,93718.0,0.08535746]
[1740436452384,0.49123292,93742.0,93718.0,0.08335746]
[1740436452599,0.00121241,93741.0,93728.0,0.08535746]
[1740436452816,0.160032,93732.0,93728.0,0.08535746]
[1740436453041,0.00121241,93742.0,93728.0,0.08535746]
[1740436453320,0.160035,93729.0,93728.0,0.08535746]
[1740436453553,0.160071,93708.0,93704.0,0.08535746]
[1740436454209,0.161071,93708.0,93707.0,0.00543214]
[1740436454799,0.160071,93708.0,93707.0,0.00043214]
[1740436455089,0.161071,93708.0,93707.0,0.00943214]
[1740436455294,0.161071,93708.0,93707.0,0.00543214]
[1740436455671,0.161071,93708.0,93707.0,0.00943214]
[1740436456015,0.161071,93708.0,93707.0,0.00543214]
[1740436456234,0.161071,93708.0,93707.0,0.00943214]
[1740436456453,0.161071,93708.0,93707.0,0.00443214]
[1740436456678,0.160071,93708.0,93707.0,0.00443214]
[1740436456899,0.161071,93708.0,93707.0,0.00943214]
[1740436457319,0.160071,93708.0,93707.0,0.00443214]
[1740436457539,0.16675485,93708.0,93707.0,0.00843214]
[1740436458200,0.16675485,93708.0,93707.0,0.00443214]
[1740436458488,0.16775485,93708.0,93707.0,0.00843214]
[1740436458713,0.16775485,93708.0,93707.0,0.01043214]
[1740436459375,0.16775485,93708.0,93707.0,0.00443214]
[1740436459624,0.16675485,93708.0,93707.0,0.00043214]
[1740436459840,0.16825221,93708.0,93707.0,0.00243214]
[1740436460048,0.16825221,93708.0,93707.0,0.00643214]
[1740436460482,0.16156836,93708.0,93707.0,0.00243214]
[1740436460696,0.16156836,93708.0,93707.0,0.00643214]
[1740436460887,0.16156836,93708.0,93707.0,0.00443214]
[1740436461115,0.16156836,93708.0,93707.0,0.00043214]
[1740436461347,0.16156836,93708.0,93707.0,0.00243214]
[1740436461582,0.16156836,93708.0,93707.0,0.00643214]
[1740436462451,0.16156836,93708.0,93707.0,0.00443214]
[1740436462685,0.16156836,93708.0,93707.0,0.00043214]
[1740436462888,0.16156836,93708.0,93707.0,0.00443214]
[1740436463321,0.16156836,93708.0,93707.0,0.00643214]
[1740436463554,0.16156836,93708.0,93707.0,0.00243214]
[1740436463767,0.16156836,93708.0,93707.0,0.00643214]
[1740436464204,0.16156836,93708.0,93707.0,0.00243214]
[1740436464424,0.16156836,93708.0,93707.0,0.00443214]
[1740436464638,0.16256836,93708.0,93707.0,0.00643214]
[1740436465061,0.16256836,93708.0,93707.0,0.00443214]
[1740436465789,0.16156836,93708.0,93707.0,0.00243214]
[1740436466007,0.16156836,93708.0,93707.0,0.00643214]
[1740436475128,0.00149736,93708.0,93707.0,0.16650514]
[1740436475369,0.3441047,93743.0,93707.0,0.15497783]
[1740436475580,0.213386,93727.0,93717.0,0.08535746]
[1740436475795,0.160045,93724.0,93717.0,0.08535746]
[1740436476020,0.00235062,93718.0,93717.0,0.08535746]
[1740436476241,0.0008489,93718.0,93717.0,0.24541346]
[1740436476465,0.0008489,93718.0,93717.0,0.08535746]
[1740436476909,0.00235062,93718.0,93717.0,0.08435746]
[1740436477124,0.00235062,93718.0,93717.0,0.32531346]
[1740436477345,0.0008489,93718.0,93717.0,0.32531346]
[1740436477808,0.0008489,93718.0,93717.0,0.32731346]
[1740436478054,0.0008489,93718.0,93717.0,0.32531346]
[1740436478286,0.0008489,93718.0,93717.0,0.33531346]
[1740436478725,0.0008489,93718.0,93717.0,0.32531346]
[1740436478941,0.00235823,93718.0,93717.0,0.33231346]
[1740436479176,0.00235823,93718.0,93717.0,0.33931346]
[1740436479601,0.00058212,93718.0,93717.0,0.33931346]
[1740436480506,0.00058212,93718.0,93717.0,0.44195915]
[1740436481445,0.00058212,93718.0,93717.0,0.60785408]
[1740436481664,0.00058212,93718.0,93717.0,0.96965408]
[1740436481895,0.00058212,93718.0,93717.0,0.98365408]
[1740436482138,1.2e-07,93718.0,93717.0,0.98365408]
[1740436482382,1.2e-07,93718.0,93717.0,0.50134062]
[1740436482618,1.2e-07,93718.0,93717.0,0.66839662]
[1740436482867,1.2e-07,93718.0,93717.0,0.66139662]
[1740436483102,1.2e-07,93718.0,93717.0,0.4668819]
[1740436483345,1.2e-07,93718.0,93717.0,0.47107068]
[1740436483579,1.2e-07,93718.0,93717.0,0.35070021]
[1740436484323,1.2e-07,93718.0,93717.0,0.36470021]
[1740436484793,1.2e-07,93718.0,93717.0,0.38654307]
[1740436485443,1.2e-07,93718.0,93717.0,0.46924307]
[1740436485686,1.2e-07,93718.0,93717.0,0.47735395]
[1740436486826,1.2e-07,93718.0,93717.0,0.79975395]
[1740436490785,1.2e-07,93718.0,93717.0,0.94975395]
[1740436495533,0.159991,93755.0,93717.0,0.95145175]
[1740436495760,0.159993,93754.0,93747.0,0.160004]
[1740436495950,0.159992,93755.0,93747.0,0.160003]
[1740436496184,0.00153469,93753.0,93747.0,0.160003]
[1740436496403,0.159992,93755.0,93726.0,0.08535746]
[1740436496622,0.159993,93754.0,93727.0,0.31603069]
[1740436496906,0.00153469,93753.0,93747.0,0.160004]
[1740436497395,0.00012936,93754.0,93747.0,0.160004]
[1740436497625,0.00012936,93754.0,93727.0,0.31603069]
[1740436497858,0.00153469,93753.0,93748.0,0.160002]
[1740436498601,0.00153469,93753.0,93749.0,0.160001]
[1740436498840,0.00153469,93753.0,93747.0,0.005]
[1740436499067,0.00153469,93753.0,93748.0,0.160002]
[1740436499310,0.00153469,93753.0,93747.0,0.218339]
[1740436499311,0.00012936,93754.0,93747.0,0.005]
[1740436499561,0.00153469,93752.0,93748.0,0.213337]
[1740436499811,0.00012936,93754.0,93751.0,0.159996]
[1740436500045,0.00012936,93754.0,93749.0,0.213335]
[1740436500279,0.00012936,93754.0,93749.0,0.16]
[1740436500550,0.00153469,93753.0,93752.0,0.159996]
[1740436501018,0.00012936,93754.0,93748.0,0.009]
[1740436501266,0.00012936,93754.0,93728.0,0.363383]
[1740436501267,0.00012936,93754.0,93728.0,0.15]
[1740436501500,0.00012936,93754.0,93749.0,0.007]
[1740436501729,0.00012936,93754.0,93750.0,0.16]
[1740436501960,0.00153728,93753.0,93750.0,0.16]
[1740436502417,0.00012936,93754.0,93752.0,0.159995]
[1740436502643,0.00012936,93754.0,93751.0,0.159996]
[1740436502869,0.00012936,93754.0,93750.0,0.159999]
[1740436503094,0.00012936,93754.0,93749.0,0.167]
[1740436503359,0.00153728,93753.0,93748.0,0.213335]
[1740436503583,0.00153728,93753.0,93752.0,0.159996]
[1740436503817,0.00012936,93754.0,93752.0,0.159996]
[1740436504008,0.00012936,93754.0,93750.0,0.213332]
[1740436504261,0.00012936,93754.0,93749.0,0.005]
[1740436504466,0.00012936,93754.0,93748.0,0.167002]
[1740436504779,0.00153728,93753.0,93752.0,0.005]
[1740436505215,0.00153728,93753.0,93750.0,0.007]
[1740436505701,0.00153728,93753.0,93750.0,0.012]
[1740436506387,0.00153728,93753.0,93750.0,0.171998]
[1740436506607,0.00012936,93754.0,93750.0,0.012]
[1740436506821,0.00153728,93752.0,93750.0,0.166999]
[1740436507111,0.00012936,93754.0,93752.0,0.005]
[1740436507346,0.00012936,93754.0,93750.0,0.007]
[1740436507571,0.00153728,93753.0,93749.0,0.0016972]
[1740436507793,0.00097796,93754.0,93753.0,0.159994]
[1740436508010,0.00097796,93754.0,93752.0,0.007]
[1740436508226,0.00097796,93754.0,93752.0,0.005]
[1740436508468,0.00097796,93754.0,93751.0,0.159998]
[1740436508679,0.00097796,93754.0,93750.0,0.166999]
[1740436509071,0.00097796,93754.0,93750.0,0.007]
[1740436509518,0.00097796,93754.0,93750.0,0.166999]
[1740436509742,0.00097796,93754.0,93750.0,0.16]
[1740436510195,0.00097796,93754.0,93750.0,0.1598]
[1740436510413,0.00097796,93754.0,93750.0,0.1648]
[1740436510627,0.00097796,93754.0,93750.0,0.164999]
[1740436510863,0.00097796,93754.0,93750.0,0.005]
[1740436511315,0.00097796,93754.0,93750.0,0.164999]
[1740436511759,0.00097796,93754.0,93752.0,0.007]
[1740436512253,0.00097796,93754.0,93750.0,0.164999]
[1740436512484,0.00097796,93754.0,93750.0,0.012]
[1740436512761,0.159998,93751.0,93750.0,0.012]
[1740436512977,0.240298,93751.0,93750.0,0.005]
[1740436513215,0.54064369,93751.0,93750.0,0.005]
[1740436513470,0.31,93750.0,93749.0,0.0016972]
[1740436513725,0.49294569,93750.0,93749.0,0.0016972]
[1740436513948,0.60473369,93750.0,93749.0,0.0016972]
[1740436514217,0.70737938,93750.0,93749.0,0.0016972]
[1740436514711,0.70737938,93750.0,93717.0,0.12810221]
[1740436514712,0.160054,93718.0,93717.0,0.12810221]
[1740436515102,0.160054,93718.0,93717.0,0.14990146]
[1740436516047,0.16011376,93718.0,93717.0,0.14990146]
[1740436516487,0.1752367,93718.0,93717.0,0.15690146]
[1740436516712,0.1752367,93718.0,93717.0,0.16390146]
[1740436516926,0.1752367,93718.0,93717.0,0.14210221]
[1740436517580,0.1752367,93718.0,93717.0,0.13510221]
[1740436517799,0.1752367,93718.0,93717.0,0.14210221]
[1740436518010,0.33808606,93718.0,93717.0,0.13510221]
[1740436518212,0.27788239,93718.0,93717.0,0.14210221]
[1740436518427,0.42788239,93718.0,93717.0,0.14210221]
[1740436518637,0.42788239,93718.0,93717.0,0.13510221]
[1740436519051,0.42788239,93718.0,93717.0,0.14210221]
[1740436519520,0.42788239,93718.0,93717.0,0.13510221]
[1740436519981,0.42976069,93718.0,93717.0,0.14210221]
[1740436520202,0.42976069,93718.0,93717.0,0.13510221]
[1740436520435,0.42976069,93718.0,93717.0,0.14010221]
[1740436520657,0.42976069,93718.0,93717.0,0.13510221]
[1740436521120,0.42976069,93718.0,93717.0,0.13910221]
[1740436524946,0.26970669,93718.0,93717.0,0.03910221]
[1740436525194,0.42976069,93718.0,93717.0,0.03910221]
[1740436527625,0.42976069,93718.0,93717.0,0.03210221]
[1740436527856,0.42976069,93718.0,93717.0,0.03310221]
[1740436528309,0.42976069,93718.0,93717.0,0.02910221]
[1740436528527,0.43076069,93718.0,93717.0,0.02910221]
[1740436532071,0.43493776,93718.0,93717.0,0.02910221]
[1740436542308,0.43493776,93718.0,93717.0,0.0026978]
[1740436545824,0.43578666,93718.0,93717.0,0.0026978]
[1740436547662,0.00796403,93718.0,93717.0,0.0026978]
[1740436547894,0.00641749,93718.0,93717.0,0.1627538]
[1740436548113,0.00641749,93718.0,93717.0,0.0026978]
[1740436548333,0.00190866,93718.0,93717.0,0.1627538]
[1740436548556,0.0064176,93718.0,93717.0,0.0016978]
[1740436548778,0.00090866,93718.0,93717.0,0.0016978]
[1740436549029,0.0054176,93718.0,93717.0,0.0076978]
[1740436549276,0.00090866,93718.0,93717.0,0.0076978]
[1740436549511,0.0054176,93718.0,93717.0,0.0026978]
[1740436549743,0.00090866,93718.0,93717.0,0.0076978]
[1740436549972,0.0054176,93718.0,93717.0,0.0076978]
[1740436550208,0.00090866,93718.0,93717.0,0.0076978]
[1740436550321,0.0054176,93718.0,93717.0,0.0076978]
[1740436550572,0.00090866,93718.0,93717.0,0.0066978]
[1740436550777,0.0054176,93718.0,93717.0,0.1737538]
[1740436551001,0.00090866,93718.0,93717.0,0.1737538]
[1740436551210,0.0054176,93718.0,93717.0,0.1737538]
[1740436551435,0.0054176,93718.0,93717.0,0.1617538]
[1740436551672,0.0054176,93718.0,93717.0,0.1667538]
[1740436551906,0.0054176,93718.0,93717.0,0.18984124]
[1740436552141,0.0054176,93718.0,93717.0,0.02978524]
[1740436552385,0.0054176,93718.0,93717.0,0.19584124]
[1740436552605,0.00090866,93718.0,93717.0,0.19584124]
[1740436553266,0.00542716,93718.0,93717.0,0.19584124]
[1740436553503,0.00090866,93718.0,93717.0,0.19584124]
[1740436553707,0.00542716,93718.0,93717.0,0.19584124]
[1740436553910,0.00090866,93718.0,93717.0,0.19584124]
[1740436554149,0.00542716,93718.0,93717.0,0.19584124]
[1740436554406,0.00090866,93718.0,93717.0,0.03578524]
[1740436554609,0.00542716,93718.0,93717.0,0.03578524]
[1740436554813,0.00090866,93718.0,93717.0,0.03578524]
[1740436555298,0.00542716,93718.0,93717.0,0.03578524]
[1740436555511,0.00090866,93718.0,93717.0,0.03578524]
[1740436555746,0.00542716,93718.0,93717.0,0.03578524]
[1740436555913,0.00090866,93718.0,93717.0,0.03578524]
[1740436556155,0.00542716,93718.0,93717.0,0.03578524]
[1740436556348,0.00090866,93718.0,93717.0,0.03578524]
[1740436556573,0.00542716,93718.0,93717.0,0.03578524]
[1740436556803,0.00090866,93718.0,93717.0,0.03578524]
[1740436557222,0.00618024,93718.0,93717.0,0.03578524]
[1740436560883,0.213388,93726.0,93717.0,0.03578524]
[1740436561083,0.16510593,93718.0,93717.0,0.01512927]
[1740436561307,0.160052,93719.0,93717.0,0.01512927]
[1740436561486,0.213398,93722.0,93717.0,0.01512927]
[1740436561487,0.00505193,93718.0,93717.0,0.01512927]
[1740436562009,0.160049,93722.0,93717.0,0.01512927]
[1740436562241,0.00505865,93718.0,93717.0,0.00912927]
[1740436562448,0.160049,93721.0,93717.0,0.01412927]
[1740436562700,0.00505708,93718.0,93717.0,0.00912927]
[1740436562946,0.00505708,93720.0,93717.0,0.00912927]
[1740436563209,0.160049,93722.0,93717.0,0.00212927]
[1740436563457,0.00505708,93719.0,93717.0,0.00212927]
[1740436563689,0.00505708,93718.0,93717.0,0.00812927]
[1740436564143,0.160049,93722.0,93717.0,0.00812927]
[1740436564382,0.00505708,93718.0,93717.0,0.00912927]
[1740436564611,0.160049,93722.0,93717.0,0.01412927]
[1740436564863,0.00505708,93718.0,93717.0,0.00912927]
[1740436565112,0.160049,93722.0,93717.0,0.01512927]
[1740436565347,0.213392,93724.0,93717.0,0.01512927]
[1740436565583,0.00505708,93721.0,93717.0,0.01512927]
[1740436565849,0.23281421,93732.0,93717.0,0.00812927]
[1740436566078,0.00484637,93720.0,93717.0,0.00812927]
[1740436566313,0.160051,93720.0,93717.0,0.00812927]
[1740436566533,0.00484184,93719.0,93717.0,0.01512927]
[1740436566983,0.213376,93731.0,93717.0,0.01512927]
[1740436567229,0.00484184,93718.0,93717.0,0.00812927]
[1740436567454,0.160053,93719.0,93717.0,0.00912927]
[1740436567704,0.00484184,93718.0,93717.0,0.01412927]
[1740436567809,0.00484184,93718.0,93717.0,0.00912927]
[1740436568051,0.00484184,93718.0,93717.0,0.01112927]
[1740436568511,0.00484184,93718.0,93717.0,0.00912927]
[1740436568749,0.160049,93722.0,93717.0,0.00712927]
[1740436568974,0.00484184,93718.0,93717.0,0.01112927]
[1740436569210,0.00484184,93718.0,93717.0,0.00612927]
[1740436569431,0.160049,93721.0,93717.0,0.00212927]
[1740436569672,0.00484184,93720.0,93717.0,0.00212927]
[1740436569921,0.00484184,93720.0,93717.0,0.00912927]
[1740436570142,0.160054,93718.0,93717.0,0.00912927]
[1740436570385,0.41269969,93718.0,93717.0,0.00212927]
[1740436570610,0.41754153,93718.0,93717.0,0.01512927]
[1740436570834,0.41754153,93718.0,93717.0,0.00912927]
[1740436571105,0.41754153,93718.0,93717.0,0.01412927]
[1740436571336,0.41754153,93718.0,93717.0,0.00912927]
[1740436571576,0.41754153,93718.0,93717.0,0.01212927]
[1740436572686,0.41754153,93718.0,93717.0,0.00512927]
[1740436572936,0.41854153,93718.0,93717.0,0.01212927]
[1740436574314,0.41854153,93718.0,93717.0,0.00512927]
[1740436574551,0.41754153,93718.0,93717.0,0.00512927]
[1740436576859,0.41754153,93718.0,93717.0,0.01112927]
[1740436577092,0.41854153,93718.0,93717.0,0.01112927]
[1740436584893,0.31589584,93718.0,93717.0,0.01112927]
[1740436585391,0.00584184,93718.0,93717.0,0.01112927]
[1740436586095,0.001,93718.0,93717.0,0.01112927]
[1740436586340,0.16588084,93718.0,93717.0,0.01112927]
[1740436586574,0.213402,93720.0,93717.0,0.00512927]
[1740436586830,0.00483273,93718.0,93717.0,0.01112927]
[1740436587063,0.0008488,93723.0,93717.0,0.00812927]
[1740436587298,0.00483273,93718.0,93717.0,0.00612927]
[1740436587537,0.160052,93720.0,93717.0,0.00612927]
[1740436588007,0.00483273,93719.0,93717.0,0.01912927]
[1740436588240,0.00483273,93719.0,93717.0,0.00912927]
[1740436588712,0.00483273,93719.0,93717.0,0.01312927]
[1740436588959,0.00483273,93719.0,93717.0,0.00912927]
[1740436589399,0.00483273,93719.0,93717.0,0.00212927]
[1740436590069,0.160054,93718.0,93717.0,0.00212927]
[1740436590309,0.213403,93720.0,93717.0,0.01412927]
[1740436590449,0.00483273,93718.0,93717.0,0.01412927]
[1740436590673,0.00483273,93718.0,93717.0,0.00812927]
[1740436590879,0.213403,93720.0,93717.0,0.00912927]
[1740436591086,0.160054,93718.0,93717.0,0.00912927]
[1740436591554,0.16488673,93718.0,93717.0,0.01612927]
[1740436591763,0.00483273,93718.0,93717.0,0.01612927]
[1740436592152,0.00483273,93718.0,93717.0,0.00912927]
[1740436592352,0.00483273,93718.0,93717.0,0.00212927]
[1740436592711,0.16488673,93718.0,93717.0,0.00912927]
[1740436593205,0.00483273,93718.0,93717.0,0.00912927]
[1740436593455,0.16488673,93718.0,93717.0,0.01512927]
[1740436593676,0.16488673,93718.0,93717.0,0.00812927]
[1740436593900,0.16488673,93718.0,93717.0,0.00912927]
[1740436594127,0.41753242,93718.0,93717.0,0.01612927]
[1740436594357,0.52017811,93718.0,93717.0,0.01612927]
[1740436594586,0.41753242,93718.0,93717.0,0.01612927]
[1740436595271,0.41753242,93718.0,93717.0,0.00912927]
[1740436595523,0.41716412,93718.0,93717.0,0.00212927]
[1740436595755,0.41716412,93718.0,93717.0,0.00912927]
[1740436596233,0.41716412,93718.0,93717.0,0.00212927]
[1740436596456,0.41716412,93718.0,93717.0,0.00712927]
[1740436596698,0.41716412,93718.0,93717.0,0.01412927]
[1740436596932,0.49946412,93718.0,93717.0,0.00712927]
[1740436597619,0.49946412,93718.0,93717.0,0.00912927]
[1740436598118,0.55141317,93718.0,93717.0,0.00912927]
[1740436598360,0.49946412,93718.0,93717.0,0.00912927]
[1740436598972,0.49946412,93718.0,93717.0,0.00412927]
[1740436599259,0.49946412,93718.0,93717.0,0.00512927]
[1740436599502,0.49946412,93718.0,93717.0,0.00312927]
[1740436599710,0.60310981,93718.0,93717.0,0.00212927]
[1740436599927,1.0279237,93718.0,93717.0,0.00312927]
[1740436600152,1.0078237,93718.0,93717.0,0.00312927]
[1740436600836,0.8879827,93718.0,93717.0,0.00312927]
[1740436601055,1.0407977,93718.0,93717.0,0.00312927]
[1740436601272,1.0407977,93718.0,93717.0,2.7e-07]
[1740436601497,0.310071,93708.0,93707.0,6.7e-07]
[1740436601757,0.41271669,93708.0,93707.0,0.00013016]
[1740436601960,0.82756769,93708.0,93707.0,0.00013016]
[1740436602182,0.74361192,93708.0,93707.0,0.00013016]
[1740436602832,0.74361192,93708.0,93707.0,0.00513016]
[1740436603716,0.74361192,93708.0,93707.0,0.00713016]
[1740436604369,0.74361192,93708.0,93707.0,0.00513016]
[1740436604572,0.84625761,93708.0,93707.0,0.00513016]
[1740436605466,0.74361192,93708.0,93707.0,0.00513016]
[1740436605902,0.74361192,93708.0,93707.0,0.00013016]
[1740436606148,0.74361192,93708.0,93707.0,0.00213016]
[1740436611378,0.74361192,93708.0,93707.0,1.6e-07]
[1740436612398,0.310078,93704.0,93679.0,0.02149164]
[1740436612748,0.51536938,93704.0,93703.0,0.00175756]
[1740436612984,0.5201667,93704.0,93703.0,0.00175756]
[1740436613452,0.41752101,93704.0,93703.0,0.00175756]
[1740436613694,0.41752101,93704.0,93703.0,0.00275756]
[1740436614168,0.49352101,93704.0,93703.0,5.6e-07]
[1740436614412,0.51352101,93704.0,93703.0,5.6e-07]
[1740436614885,0.310102,93690.0,93689.0,0.0016964]
[1740436615118,0.74298431,93690.0,93689.0,0.0016964]
[1740436615349,0.74777733,93690.0,93689.0,0.0016964]
[1740436616025,0.69542163,93690.0,93689.0,0.0016964]
[1740436616244,0.69542163,93690.0,93689.0,0.0026964]
[1740436616474,0.69542163,93690.0,93689.0,0.0056964]
[1740436617157,0.70210748,93690.0,93689.0,0.0056964]
[1740436618554,0.71970826,93690.0,93689.0,0.0056964]